fUSD/lending_fUSD_20251217
["ID","MTS","AMOUNT","RATE_DAILY","PERIOD"]
[398870066,1765942241320,-1749.18564804,0.00015291,2]
[398870067,1765942241333,-1658.57091694,0.00015291,2]
[398870068,1765942241343,-259.1000001,0.00015291,2]
[398870069,1765942241353,-307.25253487,0.00015291,2]
[398870070,1765942241363,-743467.58623973,0.00015291,2]
[398870071,1765942241372,-999.12,0.00015347,2]
[398870072,1765942241381,-200.0,0.00015361,2]
[398870073,1765942241389,-1500.0,0.00015368,2]
[398870074,1765942241397,-1500.0,0.00015368,2]
[398870075,1765942241406,-17034.1640268,0.00015381,2]
[398870076,1765942241415,-200.0,0.00015381,2]
[398870077,1765942241423,-200.0,0.00015381,2]
[398870078,1765942241432,-500.0,0.00015381,2]
[398870079,1765942241440,-200.0,0.00015381,2]
[398870080,1765942241449,-500.0,0.00015381,2]
[398870081,1765942241458,-500.0,0.00015381,2]
[398870082,1765942241466,-500.0,0.00015381,2]
[398870083,1765942241475,-500.0,0.00015381,2]
[398870084,1765942241483,-500.0,0.00015381,2]
[398870085,1765942241492,-500.0,0.00015381,2]
[398870086,1765942241500,-500.0,0.00015381,2]
[398870087,1765942241509,-500.0,0.00015381,2]
[398870088,1765942241518,-500.0,0.00015381,2]
[398870089,1765942241526,-500.0,0.00015381,2]
[398870090,1765942241535,-202.46824613,0.00015381,2]
[398870091,1765942241543,-500.0,0.00015381,2]
[398870092,1765942241552,-500.0,0.00015381,2]
[398870093,1765942241561,-500.0,0.00015381,2]
[398870094,1765942241569,-151.0,0.00015381,2]
[398870095,1765942241577,-151.0,0.00015381,2]
[398870096,1765942241586,-151.0,0.00015381,2]
[398870097,1765942241594,-151.0,0.00015381,2]
[398870098,1765942241603,-151.0,0.00015381,2]
[398870099,1765942241612,-151.0,0.00015381,2]
[398870100,1765942241620,-151.0,0.00015381,2]
[398870101,1765942241629,-151.0,0.00015381,2]
[398870102,1765942241638,-151.0,0.00015381,2]
[398870103,1765942241646,-151.0,0.00015381,2]
[398870104,1765942241655,-151.0,0.00015381,2]
[398870105,1765942241664,-151.0,0.00015381,2]
[398870106,1765942241672,-151.0,0.00015381,2]
[398870107,1765942241681,-151.0,0.00015381,2]
[398870108,1765942241690,-151.0,0.00015381,2]
[398870109,1765942241698,-151.0,0.00015381,2]
[398870110,1765942241707,-151.0,0.00015381,2]
[398870111,1765942241715,-151.0,0.00015381,2]
[398870112,1765942241724,-151.0,0.00015381,2]
[398870113,1765942241733,-151.0,0.00015381,2]
[398870114,1765942241741,-151.0,0.00015381,2]
[398870115,1765942241750,-151.0,0.00015381,2]
[398870116,1765942241759,-151.0,0.00015381,2]
[398870117,1765942241767,-151.0,0.00015381,2]
[398870118,1765942241776,-151.0,0.00015381,2]
[398870119,1765942241784,-151.0,0.00015381,2]
[398870120,1765942241793,-151.0,0.00015381,2]
[398870121,1765942241802,-151.0,0.00015381,2]
[398870122,1765942241810,-151.0,0.00015381,2]
[398870123,1765942241819,-151.0,0.00015381,2]
[398870124,1765942241828,-151.0,0.00015381,2]
[398870125,1765942241837,-1000.0,0.00015391,2]
[398870126,1765942241846,-27198.3035,0.00015391,2]
[398870127,1765942241855,-2500.0,0.00015391,2]
[398870128,1765942241864,-167.78659545,0.00015391,2]
[398870129,1765942241873,-43904.45717902,0.00015415,2]
[398870130,1765942241882,-287.0,0.00015425,2]
[398870131,1765942241891,-500.0,0.0001549,2]
[398870132,1765942241900,-500.0,0.0001549,2]
[398870133,1765942241909,-511.79843261,0.0001549,2]
[398870134,1765942241919,-500.0,0.0001549,2]
[398870135,1765942241927,-500.0,0.0001549,2]
[398870136,1765942241937,-500.0,0.0001549,2]
[398870137,1765942241945,-500.0,0.0001549,2]
[398870138,1765942241954,-596.5532948,0.0001549,2]
[398870139,1765942241963,-500.0,0.0001549,2]
[398870140,1765942241972,-500.0,0.0001549,2]
[398870141,1765942241981,-214.73221824,0.0001549,2]
[398870142,1765942241990,-500.0,0.0001549,2]
[398870143,1765942242000,-500.0,0.0001549,2]
[398870144,1765942242009,-500.0,0.0001549,2]
[398870145,1765942242020,-500.0,0.0001549,2]
[398870146,1765942242032,-500.0,0.0001549,2]
[398870147,1765942242041,-500.0,0.0001549,2]
[398870148,1765942242050,-767.35,0.0001549,2]
[398870149,1765942242060,-767.35,0.0001549,2]
[398870150,1765942242069,-767.35,0.0001549,2]
[398870151,1765942242080,-510.72092974,0.0001549,2]
[398870152,1765942242090,-500.0,0.0001549,2]
[398870153,1765942242099,-502.35879783,0.0001549,2]
[398870154,1765942242107,-1220.0,0.00015515,2]
[398870155,1765942242116,-17034.16402678,0.0001556,2]
[398870156,1765942242131,-43904.45717896,0.0001558,2]
[398870157,1765942242140,-1283.86364394,0.00015618,2]
[398870158,1765942242149,-323.37413083,0.00015621,2]
[398870159,1765942242162,-1000.0,0.00015621,2]
[398870160,1765942242171,-571.10024151,0.00015621,2]
[398870161,1765942242180,-500.0,0.00015621,2]
[398870162,1765942242189,-976.1888274,0.00015621,2]
[398870163,1765942242205,-808.5824662,0.00015621,2]
[398870164,1765942242224,-1000.0,0.00015621,2]
[398870165,1765942242239,-1000.0,0.00015621,2]
[398870166,1765942242249,-500.0,0.00015621,2]
[398870167,1765942242258,-1000.0,0.00015621,2]
[398870168,1765942242268,-1000.0,0.00015621,2]
[398870169,1765942242281,-1000.0,0.00015621,2]
[398870170,1765942242290,-1000.0,0.00015621,2]
[398870171,1765942242299,-500.0,0.00015621,2]
[398870172,1765942242309,-510.29296318,0.00015621,2]
[398870173,1765942242319,-1000.0,0.00015621,2]
[398870174,1765942242328,-1000.0,0.00015621,2]
[398870175,1765942242338,-1000.0,0.00015621,2]
[398870176,1765942242348,-673.48048092,0.00015621,2]
[398870177,1765942242357,-500.0,0.00015621,2]
[398870178,1765942242366,-1000.0,0.00015621,2]
[398870179,1765942242375,-510.42546557,0.00015621,2]
[398870180,1765942242386,-1050.48787069,0.00015621,2]
[398870181,1765942242395,-573.87963978,0.00015621,2]
[398870182,1765942242404,-1000.0,0.00015621,2]
[398870183,1765942242413,-1000.0,0.00015621,2]
[398870184,1765942242422,-1000.0,0.00015621,2]
[398870185,1765942242431,-701.9802891,0.00015621,2]
[398870186,1765942242440,-500.0,0.00015621,2]
[398870187,1765942242450,-1000.0,0.00015621,2]
[398870188,1765942242461,-1000.0,0.00015621,2]
[398870189,1765942242470,-470.74901096,0.00015621,2]
[398870190,1765942242479,-187.2830823,0.00015621,2]
[398870191,1765942242489,-1000.0,0.00015621,2]
[398870192,1765942242498,-1000.0,0.00015621,2]
[398870193,1765942242509,-508.89649287,0.00015621,2]
[398870194,1765942242518,-1000.0,0.00015621,2]
[398870195,1765942242527,-1000.0,0.00015621,2]
[398870196,1765942242536,-1000.0,0.00015621,2]
[398870197,1765942242545,-500.33521385,0.00015621,2]
[398870198,1765942242554,-1000.0,0.00015621,2]
[398870199,1765942242562,-1000.0,0.00015621,2]
[398870201,1765942242572,-1000.0,0.00015621,2]
[398870203,1765942242581,-667.70379542,0.00015621,2]
[398870205,1765942242590,-958.21718193,0.00015621,2]
[398870207,1765942242599,-1000.0,0.00015621,2]
[398870209,1765942242608,-1000.0,0.00015621,2]
[398870211,1765942242619,-501.45316353,0.00015621,2]
[398870212,1765942242628,-395.86438842,0.00015621,2]
[398870213,1765942242637,-1000.0,0.00015621,2]
[398870214,1765942242647,-999.12,0.00015621,2]
[398870215,1765942242656,-420.0,0.00015631,2]
[398870216,1765942242666,-500.0,0.00015699,2]
[398870217,1765942242677,-500.0,0.00015699,2]
[398870218,1765942242687,-500.0,0.00015699,2]
[398870219,1765942242696,-500.0,0.00015699,2]
[398870220,1765942242706,-500.0,0.00015699,2]
[398870221,1765942242715,-500.0,0.00015699,2]
[398870222,1765942242724,-500.0,0.00015699,2]
[398870223,1765942242734,-500.0,0.00015699,2]
[398870224,1765942242743,-178.48,0.00015699,2]
[398870225,1765942242753,-1680.0,0.00015699,2]
[398870226,1765942242762,-462.0,0.00015719,2]
[398870227,1765942242771,-17034.16402678,0.00015738,2]
[398870228,1765942242781,-43904.45717896,0.00015745,2]
[398870229,1765942242791,-475.51025178,0.00015761,2]
[398870230,1765942242800,-793.7902791,0.00015781,2]
[398870231,1765942242809,-166.66,0.00015797,2]
[398870232,1765942242818,-999.12,0.00015895,2]
[398870233,1765942242827,-2789.48151675,0.000159,2]
[398870242,1765942243567,-1237.62725176,0.000159,2]
[398870243,1765942243576,-630.97981527,0.000159,2]
[398870244,1765942243643,-503.93718342,0.000159,2]
[398870245,1765942243654,-518.98264,0.000159,2]
[398870246,1765942243706,-2373.20912979,0.000159,2]
[398870247,1765942243715,-4027.10876848,0.000159,2]
[398870248,1765942243724,-4027.10876848,0.000159,2]
[398870249,1765942243733,-4027.10876848,0.000159,2]
[398870250,1765942243743,-4027.10876848,0.000159,2]
[398870251,1765942243753,-366.83373706,0.000159,2]
[398870252,1765942243762,-43904.45717896,0.0001591,2]
[398870253,1765942243771,-2000.0,0.00015916,2]
[398870254,1765942243781,-1858.77671532,0.00015916,2]
[398870255,1765942243790,-17034.16402678,0.00015917,2]
[398870256,1765942243799,-200.0,0.00015929,2]
[398870257,1765942243808,-500.0,0.00015929,2]
[398870258,1765942243817,-200.0,0.00015929,2]
[398870259,1765942243826,-1283.86364394,0.00015975,2]
[398870260,1765942243836,-151.0,0.00015997,2]
[398870261,1765942243845,-151.0,0.00015997,2]
[398870262,1765942243855,-481.46730423,0.00016,3]
[398870263,1765942243864,-11112.25512909,0.00016,2]
[398870264,1765942243873,-140960.78261453,0.00016,2]
[398870265,1765942243882,-656102.1052067,0.00016,4]
[398870266,1765942243892,-160.94997743,0.00016,2]
[398870267,1765942243901,-43904.45717896,0.00016075,2]
[398870268,1765942243911,-17034.16402678,0.00016095,2]
[398870269,1765942243920,-999.99,0.00016116,2]
[398870270,1765942243928,-150.99,0.00016116,2]
[398870271,1765942243938,-300.0,0.00016119,2]
[398870272,1765942243947,-999.12,0.00016168,2]
[398870273,1765942243955,-1500.0,0.00016168,2]
[398870274,1765942243964,-902.50852484,0.00016168,2]
[398870275,1765942243973,-247.02783238,0.00016168,2]
[398870276,1765942243982,-500.0,0.00016168,2]
[398870277,1765942244295,-500.0,0.00016168,2]
[398870278,1765942244305,-1000.0,0.00016168,2]
[398870279,1765942244316,-834.85585619,0.00016168,2]
[398870280,1765942244326,-991.33817562,0.00016168,2]
[398870281,1765942244335,-1500.0,0.00016168,2]
[398870282,1765942244344,-1072.06327732,0.00016168,2]
[398870283,1765942244353,-500.0,0.00016168,2]
[398870284,1765942244362,-1620.05393732,0.00016168,2]
[398870285,1765942244372,-1500.0,0.00016168,2]
[398870286,1765942244381,-1500.0,0.00016168,2]
[398870287,1765942244390,-1500.0,0.00016168,2]
[398870288,1765942244400,-1487.452036,0.00016168,2]
[398870289,1765942244409,-1500.0,0.00016168,2]
[398870290,1765942244419,-1500.0,0.00016168,2]
[398870291,1765942244428,-1500.0,0.00016168,2]
[398870292,1765942244437,-1500.0,0.00016168,2]
[398870293,1765942244446,-500.0,0.00016168,2]
[398870294,1765942244456,-1500.0,0.00016168,2]
[398870295,1765942244465,-254.07074293,0.00016168,2]
[398870296,1765942244475,-1229.17576217,0.00016168,2]
[398870297,1765942244485,-500.93555009,0.00016168,2]
[398870298,1765942244494,-500.0,0.00016168,2]
[398870299,1765942244504,-1011.12775583,0.00016168,2]
[398870300,1765942244513,-2457.83486135,0.00016174,2]
[398870301,1765942244522,-5000.00301296,0.000162,5]
[398870302,1765942244531,-43904.45717896,0.0001624,2]
[398870303,1765942244548,-17034.16402678,0.00016274,2]
[398870304,1765942244559,-793.7902791,0.00016301,2]
[398870305,1765942244569,-166.66,0.00016318,2]
[398870306,1765942244579,-2372.64818563,0.00016338,2]
[398870307,1765942244588,-481.46730423,0.00016395,2]
[398870308,1765942244597,-262582.60635971,0.000164,2]
[398870309,1765942244607,-43904.45717896,0.00016405,2]
[398870310,1765942244617,-3637.32,0.0001641,2]
[398870311,1765942244627,-220.37731912,0.00016437,2]
[398870312,1765942244637,-500.0,0.00016437,2]
[398870313,1765942244648,-500.0,0.00016437,2]
[398870314,1765942244658,-300.0,0.00016438,2]
[398870315,1765942244668,-300.0,0.00016438,2]
[398870316,1765942244677,-300.0,0.00016438,2]
[398870317,1765942244687,-300.0,0.00016438,2]
[398870318,1765942244696,-300.0,0.00016438,2]
[398870319,1765942244706,-300.0,0.00016438,2]
[398870320,1765942244715,-300.0,0.00016438,2]
[398870321,1765942244725,-300.0,0.00016438,2]
[398870322,1765942244735,-300.0,0.00016438,2]
[398870323,1765942244744,-300.0,0.00016438,2]
[398870324,1765942244754,-300.0,0.00016438,2]
[398870325,1765942244764,-438.46,0.00016438,2]
[398870326,1765942244774,-1000.0,0.00016438,2]
[398870327,1765942244783,-1000.0,0.00016438,2]
[398870328,1765942244793,-1000.0,0.00016438,2]
[398870329,1765942244802,-1029.15700818,0.00016438,2]
[398870330,1765942244812,-500.0,0.00016438,2]
[398870331,1765942244822,-500.0,0.00016438,2]
[398870332,1765942244831,-500.0,0.00016438,2]
[398870333,1765942244841,-500.0,0.00016438,2]
[398870334,1765942244851,-500.0,0.00016438,2]
[398870335,1765942244861,-500.0,0.00016438,2]
[398870336,1765942244871,-500.0,0.00016438,2]
[398870337,1765942244880,-500.0,0.00016438,2]
[398870338,1765942244890,-500.0,0.00016438,2]
[398870339,1765942244899,-500.0,0.00016438,2]
[398870340,1765942244909,-500.0,0.00016438,2]
[398870341,1765942244918,-500.0,0.00016438,2]
[398870342,1765942244927,-500.0,0.00016438,2]
[398870343,1765942244936,-500.0,0.00016438,2]
[398870344,1765942244946,-500.0,0.00016438,2]
[398870345,1765942244955,-500.0,0.00016438,2]
[398870346,1765942244964,-500.0,0.00016438,2]
[398870347,1765942244974,-500.0,0.00016438,2]
[398870348,1765942244984,-500.0,0.00016438,2]
[398870349,1765942244993,-500.0,0.00016438,2]
[398870350,1765942245003,-500.0,0.00016438,2]
[398870351,1765942245013,-500.0,0.00016438,2]
[398870352,1765942245023,-500.0,0.00016438,2]
[398870353,1765942245032,-500.0,0.00016438,2]
[398870354,1765942245042,-500.0,0.00016438,2]
[398870355,1765942245051,-500.0,0.00016438,2]
[398870356,1765942245060,-500.0,0.00016438,2]
[398870357,1765942245069,-500.0,0.00016438,2]
[398870358,1765942245078,-500.0,0.00016438,2]
[398870359,1765942245092,-500.0,0.00016438,2]
[398870360,1765942245102,-500.0,0.00016438,2]
[398870361,1765942245112,-500.0,0.00016438,2]
[398870362,1765942245121,-500.0,0.00016438,2]
[398870363,1765942245131,-500.0,0.00016438,2]
[398870364,1765942245141,-500.0,0.00016438,2]
[398870365,1765942245151,-500.0,0.00016438,2]
[398870366,1765942245164,-500.0,0.00016438,2]
[398870367,1765942245174,-500.0,0.00016438,2]
[398870368,1765942245183,-500.0,0.00016438,2]
[398870369,1765942245193,-581.43108098,0.00016438,2]
[398870370,1765942245202,-500.0,0.00016438,2]
[398870371,1765942245213,-500.0,0.00016438,2]
[398870372,1765942245223,-500.0,0.00016438,2]
[398870373,1765942245233,-500.0,0.00016438,2]
[398870374,1765942245242,-500.0,0.00016438,2]
[398870375,1765942245251,-500.0,0.00016438,2]
[398870376,1765942245261,-500.0,0.00016438,2]
[398870377,1765942245270,-500.0,0.00016438,2]
[398870378,1765942245280,-500.0,0.00016438,2]
[398870379,1765942245290,-500.0,0.00016438,2]
[398870380,1765942245300,-500.0,0.00016438,2]
[398870381,1765942245310,-500.0,0.00016438,2]
[398870382,1765942245320,-500.0,0.00016438,2]
[398870383,1765942245330,-500.0,0.00016438,2]
[398870384,1765942245339,-500.0,0.00016438,2]
[398870385,1765942245349,-500.0,0.00016438,2]
[398870386,1765942245359,-500.0,0.00016438,2]
[398870387,1765942245370,-500.0,0.00016438,2]
[398870388,1765942245380,-500.0,0.00016438,2]
[398870389,1765942245390,-500.0,0.00016438,2]
[398870390,1765942245400,-500.0,0.00016438,2]
[398870391,1765942245410,-500.0,0.00016438,2]
[398870392,1765942245420,-500.0,0.00016438,2]
[398870393,1765942245429,-500.0,0.00016438,2]
[398870394,1765942245439,-500.0,0.00016438,2]
[398870396,1765942245450,-500.0,0.00016438,2]
[398870397,1765942245460,-500.0,0.00016438,2]
[398870398,1765942245474,-500.0,0.00016438,2]
[398870399,1765942245485,-500.0,0.00016438,2]
[398870400,1765942245494,-500.0,0.00016438,2]
[398870401,1765942245504,-500.0,0.00016438,2]
[398870402,1765942245514,-500.0,0.00016438,2]
[398870403,1765942245524,-500.0,0.00016438,2]
[398870404,1765942245533,-500.0,0.00016438,2]
[398870405,1765942245542,-450.0,0.00016438,2]
[398870406,1765942245552,-500.0,0.00016438,2]
[398870407,1765942245562,-500.0,0.00016438,2]
[398870408,1765942245573,-500.0,0.00016438,2]
[398870409,1765942245583,-500.0,0.00016438,2]
[398870410,1765942245592,-500.0,0.00016438,2]
[398870411,1765942245602,-500.0,0.00016438,2]
[398870412,1765942245612,-500.0,0.00016438,2]
[398870413,1765942245622,-500.0,0.00016438,2]
[398870414,1765942245632,-500.0,0.00016438,2]
[398870415,1765942245641,-500.0,0.00016438,2]
[398870416,1765942245651,-500.0,0.00016438,2]
[398870417,1765942245660,-500.0,0.00016438,2]
[398870418,1765942245670,-500.0,0.00016438,2]
[398870419,1765942245680,-500.0,0.00016438,2]
[398870420,1765942245690,-500.0,0.00016438,2]
[398870421,1765942245699,-500.0,0.00016438,2]
[398870422,1765942245709,-500.0,0.00016438,2]
[398870423,1765942245719,-600.0,0.00016438,2]
[398870424,1765942245729,-150.0,0.00016438,2]
[398870425,1765942245739,-10507.82,0.00016438,2]
[398870426,1765942245748,-712.0,0.00016438,2]
[398870427,1765942245758,-712.0,0.00016438,2]
[398870428,1765942245768,-719.0,0.00016438,2]
[398870429,1765942245778,-719.0,0.00016438,2]
[398870430,1765942245787,-719.0,0.00016438,2]
[398870431,1765942245797,-999.12,0.00016442,2]
[398870432,1765942245807,-17034.16402678,0.00016452,2]
[398870433,1765942245816,-1000.0,0.00016464,2]
[398870434,1765942245826,-500.0,0.00016477,2]
[398870435,1765942245836,-200.0,0.00016477,2]
[398870436,1765942245846,-500.0,0.0001656,2]
[398870437,1765942245859,-43904.45717896,0.0001657,2]
[398870438,1765942245869,-358.48883582,0.000166,2]
[398870439,1765942245880,-17034.16402678,0.00016631,2]
[398870440,1765942245890,-500.0,0.00016699,2]
[398870441,1765942245900,-400.37819361,0.00016699,2]
[398870442,1765942245910,-1000.0,0.00016709,2]
[398870443,1765942245920,-999.12,0.00016716,2]
[398870444,1765942245929,-2000.0,0.00016716,2]
[398870445,1765942245939,-2000.0,0.00016716,2]
[398870446,1765942245949,-1501.77884562,0.00016716,2]
[398870447,1765942245959,-584.76971831,0.00016716,2]
[398870448,1765942245969,-284.1797777,0.00016716,2]
[398870449,1765942245979,-2000.0,0.00016716,2]
[398870450,1765942245989,-2000.0,0.00016716,2]
[398870451,1765942245999,-357.82620064,0.00016716,2]
[398870452,1765942246009,-2000.0,0.00016716,2]
[398870453,1765942246020,-1541.13548811,0.00016716,2]
[398870454,1765942246031,-2457.8348613,0.00016719,2]
[398870456,1765942246042,-43904.45717896,0.00016735,2]
[398870457,1765942246051,-2372.64818561,0.00016765,2]
[398870458,1765942246063,-17034.16402678,0.00016809,2]
[398870459,1765942246073,-793.7902791,0.00016821,2]
[398870460,1765942246083,-166.66,0.0001684,2]
[398870462,1765942246094,-151.0,0.00016897,2]
[398870463,1765942246104,-167.0,0.000169,2]
[398870464,1765942246114,-167.73,0.000169,2]
[398870465,1765942246124,-487.47228728,0.000169,2]
[398870466,1765942246134,-156.26056198,0.000169,2]
[398870467,1765942246143,-156.26056198,0.000169,2]
[398870468,1765942246152,-156.26056198,0.000169,2]
[398870469,1765942246165,-156.26056198,0.000169,2]
[398870470,1765942246175,-156.26056198,0.000169,2]
[398870471,1765942246185,-156.26056198,0.000169,2]
[398870472,1765942246195,-156.26056198,0.000169,2]
[398870473,1765942246206,-156.26056198,0.000169,2]
[398870474,1765942246216,-156.26056198,0.000169,2]
[398870475,1765942246226,-156.26056198,0.000169,2]
[398870476,1765942246238,-156.26056198,0.000169,2]
[398870477,1765942246251,-156.26056198,0.000169,2]
[398870478,1765942246261,-156.26056198,0.000169,2]
[398870479,1765942246271,-156.26056198,0.000169,2]
[398870480,1765942246282,-156.26056198,0.000169,2]
[398870481,1765942246293,-156.26056198,0.000169,2]
[398870482,1765942246303,-156.26056198,0.000169,2]
[398870483,1765942246313,-156.26,0.000169,2]
[398870484,1765942246323,-43904.45717896,0.000169,2]
[398870485,1765942246332,-191.94653337,0.000169,2]
[398870486,1765942246342,-191.94653337,0.000169,2]
[398870487,1765942246351,-191.94,0.000169,2]
[398870488,1765942246361,-161.11564941,0.000169,2]
[398870489,1765942246371,-161.11564941,0.000169,2]
[398870491,1765942246380,-161.11564941,0.000169,2]
[398870492,1765942246390,-161.11564941,0.000169,2]
[398870493,1765942246399,-161.11564941,0.000169,2]
[398870494,1765942246410,-161.11564941,0.000169,2]
[398870495,1765942246420,-161.11,0.000169,2]
[398870496,1765942246430,-460.13484067,0.000169,2]
[398870497,1765942246441,-219.63809582,0.000169,2]
[398870498,1765942246451,-500.0,0.00016986,2]
[398870499,1765942246462,-151.0,0.00016986,2]
[398870500,1765942246472,-154.381646,0.00016986,2]
[398870501,1765942246482,-253.666419,0.00016986,2]
[398870502,1765942246492,-253.666419,0.00016986,2]
[398870503,1765942246502,-253.666419,0.00016986,2]
[398870504,1765942246512,-253.666419,0.00016986,2]
[398870505,1765942246522,-151.0,0.00016986,2]
[398870506,1765942246532,-151.0,0.00016986,2]
[398870507,1765942246541,-151.0,0.00016986,2]
[398870508,1765942246551,-151.0,0.00016986,2]
[398870509,1765942246561,-221.381776,0.00016986,2]
[398870510,1765942246571,-600.0,0.00016986,2]
[398870511,1765942246580,-150.28381276,0.00016986,2]
[398870512,1765942246590,-182705.28,0.00016986,2]
[398870513,1765942246599,-17034.16402678,0.00016988,2]
[398870514,1765942246609,-999.12867302,0.0001699,2]
[398870515,1765942246622,-366.83373706,0.0001699,2]
[398870516,1765942246632,-366.83373706,0.0001699,2]
[398870517,1765942246642,-154.04458374,0.00016997,2]
[398870518,1765942246651,-2013.13365055,0.00016999,2]
[398870519,1765942246661,-500.0,0.00016999,2]
[398870520,1765942246671,-500.0,0.00016999,2]
[398870521,1765942246680,-500.0,0.00016999,2]
[398870522,1765942246690,-500.0,0.00016999,2]
[398870523,1765942246699,-500.0,0.00016999,2]
[398870524,1765942246710,-500.0,0.00016999,2]
[398870525,1765942246720,-500.0,0.00016999,2]
[398870526,1765942246729,-500.0,0.00016999,2]
[398870527,1765942246739,-500.0,0.00016999,2]
[398870528,1765942246749,-500.0,0.00016999,2]
[398870529,1765942246759,-500.0,0.00016999,2]
[398870530,1765942246769,-500.0,0.00016999,2]
[398870531,1765942246778,-500.0,0.00016999,2]
[398870532,1765942246788,-500.0,0.00016999,2]
[398870533,1765942246798,-500.0,0.00016999,2]
[398870534,1765942246808,-500.0,0.00016999,2]
[398870535,1765942246818,-500.0,0.00016999,2]
[398870536,1765942246827,-500.0,0.00016999,2]
[398870537,1765942246837,-366.93006566,0.00016999,2]
[398870538,1765942246847,-817737.98047133,0.00017,2]
[398870539,1765942248743,-92844.93379538,0.00017,2]
[398870540,1765942248836,-479.47431379,0.00017,2]
[398870541,1765942248847,-1847.29706136,0.00017,2]
[398870542,1765942248863,-884.79552283,0.00017,2]
[398870543,1765942248875,-2451.658834,0.00017,2]
[398870544,1765942248886,-451.169914,0.00017,2]
[398870545,1765942248897,-1427.900885,0.00017,2]
[398870546,1765942248952,-1614.35729233,0.00017,2]
[398870547,1765942248964,-49066.53899884,0.00017,2]
[398870548,1765942248975,-695.28994766,0.00017,2]
[398870549,1765942248992,-4514.51,0.00017,2]
[398870550,1765942249006,-752.0900232,0.00017,2]
[398870551,1765942249017,-1579.99819963,0.00017,2]
[398870552,1765942249089,-671.44990857,0.00017,2]
[398870553,1765942249100,-730.0,0.00017,2]
[398870554,1765942249111,-4225.34104623,0.00017,2]
[398870555,1765942251768,-254.793466,0.0001529,2]
[398870556,1765942251778,-500.0,0.0001529,2]
[398870557,1765942251787,-32.66700871,0.0001529,2]
[398870558,1765942251800,-392.42322,0.0001529,2]
[398870559,1765942251811,-74.90977129,0.0001529,2]
[398870560,1765942251820,-337.14868622,0.00017,2]
[398870561,1765942251831,-1164.99761564,0.00017,2]
[398870562,1765942251842,-4779.79456686,0.00017,2]
[398870563,1765942251872,-462.46567545,0.00017,2]
[398870564,1765942251885,-646.82040323,0.00017,2]
[398870565,1765942251896,-1988.99839046,0.00017,2]
[398870566,1765942251907,-46740.72385633,0.00017,2]
[398870567,1765942251971,-500.0,0.0001529,2]
[398870568,1765942251980,-122655.39793574,0.00017,2]
[398870569,1765942251991,-1302.81008527,0.00017,2]
[398870570,1765942252001,-504.95613233,0.00017,2]
[398870571,1765942252012,-636.960009,0.00017,2]
[398870572,1765942252242,-22492.90435014,0.00017,2]
[398870573,1765942252254,-1015.95344153,0.00017,2]
[398870574,1765942252295,-203551.47797198,0.00017,2]
[398870575,1765942252306,-4139.35275217,0.00017,2]
[398870576,1765942252318,-337.27249606,0.00017,2]
[398870577,1765942252331,-4334.78576873,0.00017,2]
[398870578,1765942255364,-500.0,0.0001529,2]
[398870579,1765942255374,-106.553,0.0001529,2]
[398870580,1765942255405,-222.68686707,0.0001529,2]
[398870581,1765942255414,-164.57340201,0.0001529,2]
[398870582,1765942255423,-194.79802642,0.0001529,2]
[398870583,1765942255434,-196.58341956,0.0001529,2]